Workbook

Sheet Length
B2: Level 2 Length Recap Created by Mr. Lafferty@mathsrevision.com
B7: Q1. Change from cm into mm.
D9: (a) | E9: =ROUND((RAND()*(99-9)+9),0) -> 63 | G9: cm | M9: mm | T9: (b) | U9: =ROUND((RAND()*(98.2-5.3)+5.3),1) -> 76.1 | W9: cm | AB9: mm | AO9: =E9*10 -> 630
AO10: =U9*10 -> 761
B11: Q2. Change from mm into cm.
D13: (b) | E13: =ROUND((RAND()*(98-9)+9),0) -> 73 | G13: mm | M13: cm | T13: (d) | U13: =ROUND((RAND()*(99.8-9.1)+9.1),1) -> 66.2 | W13: mm | AB13: cm | AO13: =E13/10 -> 7.3
AO14: =U13/10 -> 6.62
B16: Q3. Change from m into cm.
D18: (a) | E18: =ROUND((RAND()*(99-9)+9),0) -> 70 | G18: m | M18: cm | T18: (b) | U18: =ROUND((RAND()*(988-50)+50),0) -> 414 | W18: m | AB18: cm | AO18: =E18*100 -> 7000
AO19: =U18*100 -> 41400
B20: Q4. Change from cm into m.
D22: (b) | E22: =ROUND((RAND()*(998-69)+99),0) -> 487 | G22: cm | M22: m | T22: (d) | U22: =ROUND((RAND()*(999-69)+69),0) -> 380 | W22: cm | AB22: m | AO22: =E22/100 -> 4.87
AO23: =U22/100 -> 3.8
B25: Q5. Change from km into m.
D27: (a) | E27: =ROUND((RAND()*(99-9)+9),0) -> 99 | G27: km | M27: m | T27: (b) | U27: =ROUND((RAND()*(988-3)+3),0) -> 334 | W27: km | AB27: m | AO27: =E27*1000 -> 99000
AO28: =U27*1000 -> 334000
B29: Q6. Change from m into km.
D31: (b) | E31: =ROUND((RAND()*(9998-1111)+1111),0) -> 4528 | G31: m | M31: km | T31: (d) | U31: =ROUND((RAND()*(9999-9)+9),0) -> 9282 | W31: m | AB31: km | AO31: =E31/1000 -> 4.528
AO32: =U31/1000 -> 9.282
B34: Q7. Mixed questions.
D36: (a) | E36: =ROUND((RAND()*(99-9)+9),0) -> 55 | G36: m | M36: mm | Q36: (b) | R36: =ROUND((RAND()*(99-9)+9),0) -> 92 | T36: mm | Z36: m | AB36: (c) | AC36: =ROUND((RAND()*(99-9)+9),0) -> 77 | AE36: km | AK36: cm | AO36: =E36*1000 -> 55000
AO37: =R36/1000 -> 0.092
AO38: =AC36*1000*100 -> 7700000
D40: (d) | E40: =ROUND((RAND()*(9998-1111)+1111),0) -> 9767 | G40: cm | M40: km | Q40: (e) | R40: =ROUND((RAND()*(9998-1111)+1111),0) -> 1645 | T40: mm | Z40: km | AB40: (f) | AC40: =ROUND((RAND()*(9998-1111)+1111),0) -> 9249 | AE40: mm | AK40: m | AO40: =E40/100/1000 -> 0.09767
AO41: =R40/1000/1000 -> 0.001645
AO42: =AC40/10/100 -> 9.249
